[Event "Titled Tuesday Blitz January 10 Early 2023"]
[White "Vaglio Munoz, Jaime"]
[Black "Ghosh, Chanchal Kumer"]
[WhiteFideId "6500145"]
[BlackFideId "10201858"]
[WhiteElo "2174"]
[BlackElo "2020"]
[Result "0-1"]
[Round "11"]
[TimeControl "180+2"]
[Date "2023.01.10"]
[WhiteClock "0:00:47"]
[BlackClock "0:00:08"]

1. d4 {[%clk 0:03:00]}  d5 {[%clk 0:03:00]} 2. c4 {[%clk 0:02:59]}  e6 {[%clk 0:03:00]} 3. Nc3 {[%clk 0:02:59]}  Nf6 {[%clk 0:03:00]} 4. Bg5 {[%clk 0:02:59]}  Be7 {[%clk 0:02:57]} 5. e3 {[%clk 0:02:59]}  b6 {[%clk 0:02:56]} 6. Nf3 {[%clk 0:02:55]}  Bb7 {[%clk 0:02:56]} 7. Qc2 {[%clk 0:02:54]}  O-O {[%clk 0:02:56]} 8. Rd1 {[%clk 0:02:53]}  Nbd7 {[%clk 0:02:56]} 9. b3 {[%clk 0:02:52]}  c5 {[%clk 0:02:55]} 10. dxc5 {[%clk 0:02:51]}  Nxc5 {[%clk 0:02:53]} 11. cxd5 {[%clk 0:02:50]}  Nxd5 {[%clk 0:02:49]} 12. Bxe7 {[%clk 0:02:46]}  Qxe7 {[%clk 0:02:50]} 13. Nxd5 {[%clk 0:02:36]}  Bxd5 {[%clk 0:02:51]} 14. Be2 {[%clk 0:02:34]}  Rac8 {[%clk 0:02:45]} 15. Qb2 {[%clk 0:02:32]}  Rc7 {[%clk 0:02:17]} 16. O-O {[%clk 0:02:32]}  Rfc8 {[%clk 0:02:17]} 17. Nd4 {[%clk 0:02:31]}  Qf6 {[%clk 0:02:05]} 18. Qa3 {[%clk 0:02:26]}  Ne4 {[%clk 0:01:55]} 19. Bf3 {[%clk 0:02:18]}  Nc3 {[%clk 0:01:43]} 20. Rd2 {[%clk 0:02:16]}  Bxf3 {[%clk 0:01:22]} 21. Nxf3 {[%clk 0:02:17]}  g5 {[%clk 0:01:13]} 22. h3 {[%clk 0:02:16]}  h5 {[%clk 0:01:12]} 23. Nd4 {[%clk 0:02:03]}  Ne4 {[%clk 0:01:02]} 24. Re2 {[%clk 0:01:58]}  g4 {[%clk 0:00:57]} 25. hxg4 {[%clk 0:01:53]}  hxg4 {[%clk 0:00:58]} 26. Nb5 {[%clk 0:01:50]}  Rc2 {[%clk 0:00:46]} 27. Rxc2 {[%clk 0:01:46]}  Rxc2 {[%clk 0:00:47]} 28. Nd6 {[%clk 0:01:45]}  Rxf2 {[%clk 0:00:36]} 29. Re1 {[%clk 0:01:40]}  Nxd6 {[%clk 0:00:22]} 30. Qxd6 {[%clk 0:01:41]}  Rxa2 {[%clk 0:00:20]} 31. Qg3 {[%clk 0:01:41]}  Qg5 {[%clk 0:00:19]} 32. Rd1 {[%clk 0:01:29]}  Kg7 {[%clk 0:00:18]} 33. Rd4 {[%clk 0:01:17]}  Ra1+ {[%clk 0:00:16]} 34. Kf2 {[%clk 0:01:14]}  Qf5+ {[%clk 0:00:14]} 35. Qf4 {[%clk 0:01:12]}  Qxf4+ {[%clk 0:00:10]} 36. exf4 {[%clk 0:01:13]}  f5 {[%clk 0:00:10]} 37. Kg3 {[%clk 0:01:10]}  Kf6 {[%clk 0:00:11]} 38. b4 {[%clk 0:01:06]}  Ra3+ {[%clk 0:00:10]} 39. Kh4 {[%clk 0:01:06]}  a5 {[%clk 0:00:10]} 40. bxa5 {[%clk 0:01:03]}  bxa5 {[%clk 0:00:11]} 41. Rd8 {[%clk 0:01:03]}  a4 {[%clk 0:00:11]} 42. Rf8+ {[%clk 0:01:02]}  Ke7 {[%clk 0:00:11]} 43. Ra8 {[%clk 0:01:02]}  Ra1 {[%clk 0:00:10]} 44. Kg5 {[%clk 0:01:01]}  Ra2 {[%clk 0:00:09]} 45. Ra7+ {[%clk 0:01:02]}  Kd6 {[%clk 0:00:08]} 46. g3 {[%clk 0:01:03]}  Ra3 {[%clk 0:00:07]} 47. Kf6 {[%clk 0:01:02]}  Rxg3 {[%clk 0:00:06]} 48. Rxa4 {[%clk 0:01:02]}  Re3 {[%clk 0:00:05]} 49. Rd4+ {[%clk 0:00:59]}  Kc5 {[%clk 0:00:05]} 50. Rd8 {[%clk 0:00:58]}  Re4 {[%clk 0:00:05]} 51. Rg8 {[%clk 0:00:57]}  Kd4 {[%clk 0:00:05]} 52. Rd8+ {[%clk 0:00:56]}  Ke3 {[%clk 0:00:05]} 53. Kg5 {[%clk 0:00:56]}  Kf3 {[%clk 0:00:05]} 54. Rd3+ {[%clk 0:00:56]}  Re3 {[%clk 0:00:05]} 55. Rd6 {[%clk 0:00:56]}  g3 {[%clk 0:00:05]} 56. Rd1 {[%clk 0:00:51]}  g2 {[%clk 0:00:05]} 57. Kh4 {[%clk 0:00:51]}  Kf2 {[%clk 0:00:05]} 58. Rd2+ {[%clk 0:00:50]}  Re2 {[%clk 0:00:05]} 59. Rd3 {[%clk 0:00:50]}  g1=Q {[%clk 0:00:05]} 60. Rh3 {[%clk 0:00:48]}  Ke1 {[%clk 0:00:04]} 61. Kh5 {[%clk 0:00:48]}  Rh2 {[%clk 0:00:04]} 62. Rxh2 {[%clk 0:00:47]}  Qxh2+ {[%clk 0:00:05]} 63. Kg5 {[%clk 0:00:48]}  Qg3+ {[%clk 0:00:04]} 64. Kf6 {[%clk 0:00:49]}  Qxf4 {[%clk 0:00:05]} 65. Kxe6 {[%clk 0:00:50]}  Qe4+ {[%clk 0:00:05]} 66. Kf6 {[%clk 0:00:50]}  f4 {[%clk 0:00:06]} 67. Kg5 {[%clk 0:00:50]}  f3 {[%clk 0:00:07]} 68. Kf6 {[%clk 0:00:49]}  f2 {[%clk 0:00:07]} 69. Kg5 {[%clk 0:00:49]}  f1=Q {[%clk 0:00:07]} 70. Kh5 {[%clk 0:00:47]}  Qeh1+ {[%clk 0:00:07]} 71. Kg4 {[%clk 0:00:47]}  Qhg2+ {[%clk 0:00:08]} 72. Kh5 {[%clk 0:00:47]}  Qfh1# {[%clk 0:00:08]} 0-1


[Site "https://www.chess.com"]

[Event "Titled Tuesday Blitz January 10 Early 2023"]
[White "Becerra, Juan David"]
[Black "Mendez Machado, Andre"]
[WhiteFideId "4404998"]
[BlackFideId "6603793"]
[WhiteElo "2382"]
[BlackElo "1974"]
[Result "0-1"]
[Round "11"]
[TimeControl "180+2"]
[Date "2023.01.10"]
[WhiteClock "0:00:45"]
[BlackClock "0:00:19"]

1. e4 {[%clk 0:03:00]}  e5 {[%clk 0:02:58]} 2. Nf3 {[%clk 0:03:00]}  Nc6 {[%clk 0:02:57]} 3. Bb5 {[%clk 0:03:01]}  a6 {[%clk 0:02:57]} 4. Ba4 {[%clk 0:03:00]}  Nf6 {[%clk 0:02:57]} 5. d3 {[%clk 0:03:00]}  b5 {[%clk 0:02:57]} 6. Bb3 {[%clk 0:03:00]}  Bc5 {[%clk 0:02:57]} 7. O-O {[%clk 0:02:58]}  d6 {[%clk 0:02:55]} 8. c3 {[%clk 0:02:58]}  h6 {[%clk 0:02:54]} 9. h3 {[%clk 0:02:57]}  O-O {[%clk 0:02:53]} 10. Re1 {[%clk 0:02:55]}  Bb6 {[%clk 0:02:50]} 11. d4 {[%clk 0:02:52]}  Bb7 {[%clk 0:02:36]} 12. d5 {[%clk 0:02:45]}  Ne7 {[%clk 0:02:34]} 13. a4 {[%clk 0:02:44]}  c6 {[%clk 0:02:29]} 14. a5 {[%clk 0:02:39]}  Bxa5 {[%clk 0:02:18]} 15. dxc6 {[%clk 0:02:39]}  Bxc6 {[%clk 0:02:18]} 16. Bc2 {[%clk 0:02:37]}  Bb6 {[%clk 0:02:14]} 17. b4 {[%clk 0:02:36]}  Qc7 {[%clk 0:02:03]} 18. Be3 {[%clk 0:02:29]}  Bxe3 {[%clk 0:01:58]} 19. Rxe3 {[%clk 0:02:29]}  Ng6 {[%clk 0:01:59]} 20. g3 {[%clk 0:02:11]}  Rfd8 {[%clk 0:01:55]} 21. Nfd2 {[%clk 0:02:01]}  d5 {[%clk 0:01:44]} 22. exd5 {[%clk 0:01:54]}  Nxd5 {[%clk 0:01:40]} 23. Re1 {[%clk 0:01:43]}  Qd7 {[%clk 0:01:21]} 24. Ne4 {[%clk 0:01:39]}  Qxh3 {[%clk 0:01:14]} 25. Qf3 {[%clk 0:01:25]}  Nh4 {[%clk 0:00:47]} 26. Qh1 {[%clk 0:01:02]}  Qxh1+ {[%clk 0:00:44]} 27. Kxh1 {[%clk 0:01:02]}  Nf3 {[%clk 0:00:45]} 28. Rd1 {[%clk 0:00:55]}  Ng5 {[%clk 0:00:39]} 29. Nxg5 {[%clk 0:00:50]}  Nxc3+ {[%clk 0:00:22]} 30. Kg1 {[%clk 0:00:49]}  Nxd1 {[%clk 0:00:20]} 31. Bxd1 {[%clk 0:00:49]}  Rxd1+ {[%clk 0:00:19]} 32. Kh2 {[%clk 0:00:45]}  Rh1# {[%clk 0:00:19]} 0-1


[Site "https://www.chess.com"]

[Event "Titled Tuesday Blitz January 10 Early 2023"]
[White "Lutz, Igor Oscar"]
[Black "Tarnowska, Aleksandra"]
[WhiteFideId "2110806"]
[BlackFideId "1180967"]
[WhiteElo "1969"]
[BlackElo "1835"]
[Result "1-0"]
[Round "11"]
[TimeControl "180+2"]
[Date "2023.01.10"]
[WhiteClock "0:00:28"]
[BlackClock "0:00:01"]

1. d4 {[%clk 0:02:58]}  d5 {[%clk 0:02:59]} 2. c4 {[%clk 0:02:58]}  e6 {[%clk 0:02:59]} 3. Nf3 {[%clk 0:02:56]}  Nf6 {[%clk 0:03:00]} 4. g3 {[%clk 0:02:56]}  Be7 {[%clk 0:03:00]} 5. Bg2 {[%clk 0:02:57]}  O-O {[%clk 0:03:00]} 6. O-O {[%clk 0:02:58]}  dxc4 {[%clk 0:03:00]} 7. Nbd2 {[%clk 0:02:45]}  c5 {[%clk 0:02:59]} 8. Nxc4 {[%clk 0:02:42]}  Nc6 {[%clk 0:02:53]} 9. dxc5 {[%clk 0:02:31]}  Bxc5 {[%clk 0:02:52]} 10. Bg5 {[%clk 0:02:26]}  Qxd1 {[%clk 0:02:46]} 11. Rfxd1 {[%clk 0:02:21]}  Ne4 {[%clk 0:02:46]} 12. e3 {[%clk 0:02:07]}  f6 {[%clk 0:02:25]} 13. Bh4 {[%clk 0:01:45]}  g5 {[%clk 0:02:21]} 14. Nd4 {[%clk 0:01:18]}  gxh4 {[%clk 0:00:37]} 15. Bxe4 {[%clk 0:01:11]}  Bxd4 {[%clk 0:00:35]} 16. exd4 {[%clk 0:01:11]}  hxg3 {[%clk 0:00:31]} 17. hxg3 {[%clk 0:01:10]}  f5 {[%clk 0:00:19]} 18. Bf3 {[%clk 0:01:03]}  Kg7 {[%clk 0:00:14]} 19. Ne5 {[%clk 0:00:58]}  Nxe5 {[%clk 0:00:10]} 20. dxe5 {[%clk 0:00:59]}  Rb8 {[%clk 0:00:09]} 21. Rac1 {[%clk 0:00:58]}  b6 {[%clk 0:00:04]} 22. Rc7+ {[%clk 0:00:57]}  Rf7 {[%clk 0:00:02]} 23. Rxf7+ {[%clk 0:00:47]}  Kxf7 {[%clk 0:00:03]} 24. Rd8 {[%clk 0:00:46]}  Ke7 {[%clk 0:00:03]} 25. Rh8 {[%clk 0:00:46]}  h6 {[%clk 0:00:02]} 26. Rh7+ {[%clk 0:00:31]}  Kf8 {[%clk 0:00:01]} 27. Rxh6 {[%clk 0:00:28]}  Bd7 {[%clk 0:00:01]} 28. Rh8+ {[%clk 0:00:28]}  Ke7 {[%clk 0:00:01]} 29. Rxb8 {[%clk 0:00:28]} 1-0


[Site "https://www.chess.com"]

[Event "Titled Tuesday Blitz January 10 Early 2023"]
[White "Kaiyrbekov, Rustam"]
[Black "Herman, Daniel"]
[WhiteFideId "13702424"]
[BlackFideId "30935008"]
[WhiteElo "2295"]
[BlackElo "1956"]
[Result "0-1"]
[Round "11"]
[TimeControl "180+2"]
[Date "2023.01.10"]
[WhiteClock "0:00:29"]
[BlackClock "0:00:55"]

1. c4 {[%clk 0:03:00]}  e5 {[%clk 0:02:59]} 2. Nc3 {[%clk 0:03:00]}  Bb4 {[%clk 0:02:46]} 3. g3 {[%clk 0:02:56]}  Bxc3 {[%clk 0:02:44]} 4. bxc3 {[%clk 0:02:57]}  Nc6 {[%clk 0:02:40]} 5. Bg2 {[%clk 0:02:56]}  f5 {[%clk 0:02:39]} 6. e3 {[%clk 0:02:54]}  e4 {[%clk 0:02:36]} 7. Ne2 {[%clk 0:02:53]}  Ne5 {[%clk 0:02:35]} 8. O-O {[%clk 0:02:54]}  Nf6 {[%clk 0:02:31]} 9. c5 {[%clk 0:02:46]}  O-O {[%clk 0:02:13]} 10. d4 {[%clk 0:02:14]}  exd3 {[%clk 0:02:08]} 11. Nf4 {[%clk 0:02:13]}  d6 {[%clk 0:02:05]} 12. Nxd3 {[%clk 0:02:05]}  Nxd3 {[%clk 0:01:56]} 13. Qxd3 {[%clk 0:02:06]}  dxc5 {[%clk 0:01:53]} 14. Qc4+ {[%clk 0:02:04]}  Kh8 {[%clk 0:01:53]} 15. Ba3 {[%clk 0:02:00]}  Ne4 {[%clk 0:01:47]} 16. Bxe4 {[%clk 0:01:38]}  fxe4 {[%clk 0:01:48]} 17. Qxc5 {[%clk 0:01:38]}  Rg8 {[%clk 0:01:19]} 18. Rad1 {[%clk 0:01:34]}  Qf6 {[%clk 0:01:17]} 19. Qxc7 {[%clk 0:01:28]}  Bh3 {[%clk 0:01:14]} 20. Qf4 {[%clk 0:01:12]}  Qxc3 {[%clk 0:01:08]} 21. Bd6 {[%clk 0:00:56]}  Bxf1 {[%clk 0:01:07]} 22. Rxf1 {[%clk 0:00:55]}  Rae8 {[%clk 0:01:04]} 23. Kg2 {[%clk 0:00:46]}  Qf6 {[%clk 0:01:04]} 24. Qg4 {[%clk 0:00:42]}  Qxd6 {[%clk 0:01:03]} 25. Rc1 {[%clk 0:00:39]}  Rgf8 {[%clk 0:00:59]} 26. h4 {[%clk 0:00:37]}  Qf6 {[%clk 0:00:58]} 27. Kh3 {[%clk 0:00:35]}  Qxf2 {[%clk 0:00:54]} 28. Rc7 {[%clk 0:00:32]}  Qf1+ {[%clk 0:00:54]} 29. Kh2 {[%clk 0:00:29]}  Rf2# {[%clk 0:00:55]} 0-1